bitfinex/quotes_ETHUSD_20220308
["timestamp","ask_amount","ask_price","bid_price","bid_amount"]
[1646765436515,0.00768132,2578.6,2578.4,0.82124116]
[1646765436714,0.00768132,2578.6,2578.5,0.39529694]
[1646765437115,0.00768132,2578.6,2578.5,0.69529694]
[1646765439162,0.00768132,2578.6,2578.5,1.16329694]
[1646765440365,0.00768132,2578.6,2578.5,2.16329694]
[1646765440767,0.00768132,2578.6,2578.5,1.39529694]
[1646765441168,0.04538358,2578.6,2578.5,0.39529694]
[1646765441374,0.04538358,2578.6,2578.4,0.0041249]
[1646765441574,12.05698358,2578.6,2578.4,0.00378537]
[1646765441822,0.42698358,2578.6,2578.4,0.00378537]
[1646765442011,0.04538358,2578.6,2578.4,0.00378537]
[1646765442611,0.04538358,2578.6,2578.4,0.0075868]
[1646765442813,0.04538358,2578.6,2578.4,0.00380143]
[1646765445016,0.04538358,2578.6,2578.4,0.40789652]
[1646765445215,0.04538358,2578.6,2578.4,0.00392705]
[1646765446068,0.04538358,2578.6,2578.4,0.40407425]
[1646765446572,0.04538358,2578.6,2578.4,0.00392705]
[1646765447469,0.04538358,2578.6,2578.4,0.00784763]
[1646765447670,0.04538358,2578.6,2578.4,0.00392058]
[1646765447870,0.04538358,2578.6,2578.5,0.72040857]
[1646765448069,0.04538358,2578.6,2578.5,1.12019811]
[1646765448471,0.04538358,2578.6,2578.5,0.72040857]
[1646765448670,0.04538358,2578.6,2578.5,1.12019592]
[1646765449820,0.04538358,2578.6,2578.5,1.88819592]
[1646765451921,0.04538358,2578.6,2578.5,1.42019592]
[1646765452321,0.04538358,2578.6,2578.5,0.39978735]
[1646765452721,0.04538358,2578.6,2578.4,0.00382569]
[1646765453369,0.04538358,2578.6,2578.4,0.00765138]
[1646765453569,0.04538358,2578.6,2578.5,0.39978735]
[1646765453970,0.04538358,2578.6,2578.4,0.00382569]
[1646765454772,0.04538358,2578.6,2578.4,0.00382441]
[1646765455772,0.04538358,2578.6,2578.4,0.00764887]
[1646765455971,0.04538358,2578.6,2578.4,0.00382446]
[1646765456371,0.04538358,2578.6,2578.4,0.00299294]
[1646765457021,0.04538358,2578.6,2578.1,0.40049911]
[1646765457218,0.04538358,2578.6,2578.2,0.40049911]
[1646765459324,0.04538358,2578.6,2578.2,1.09935929]
[1646765459529,0.04538358,2578.6,2578.3,2.34011911]
[1646765459724,0.04538358,2578.6,2578.4,1.16849911]
[1646765459927,0.04538358,2578.6,2578.5,0.40049911]
[1646765460125,0.04538358,2578.6,2578.5,1.16849911]
[1646765460562,0.04538358,2578.6,2578.5,0.70049911]
[1646765460768,0.04538358,2578.6,2578.5,0.40049911]
[1646765460969,0.04538358,2578.6,2578.4,0.00415397]
[1646765461168,0.03746578,2578.7,2578.4,0.00415397]
[1646765461169,0.03746578,2578.7,2578.5,3.0]
[1646765461369,0.03746578,2578.7,2578.6,0.86849911]
[1646765466142,0.04177896,2578.7,2578.6,0.86849911]
[1646765466339,0.04177896,2578.7,2578.6,1.16849911]
[1646765468189,0.04177896,2578.7,2578.6,0.70049911]
[1646765468372,0.04177896,2578.7,2578.6,0.40049911]
[1646765468773,0.04177896,2578.7,2578.5,0.40427496]
[1646765468971,0.04177896,2578.7,2578.6,0.40049911]
[1646765469674,0.04177896,2578.7,2578.5,0.00382935]
[1646765470173,0.04177896,2578.7,2578.5,0.0076587]
[1646765470374,0.04177896,2578.7,2578.6,0.40049911]
[1646765470774,0.04155087,2578.8,2578.5,0.00382935]
[1646765471472,0.04155087,2578.8,2578.5,0.0076587]
[1646765471673,0.04155087,2578.8,2578.6,0.40049911]
[1646765471914,0.04155087,2578.8,2578.7,0.40049911]
[1646765472314,0.42315087,2578.8,2578.7,0.40049911]
[1646765472519,4.67682277,2578.8,2578.5,0.00382935]
[1646765472714,1.1352719,2578.7,2578.5,0.00765079]
[1646765472914,1.1352719,2578.7,2578.6,0.41348432]
[1646765473115,1.1343499,2578.7,2578.5,0.00382144]
[1646765473915,1.1343499,2578.7,2578.5,0.00764286]
[1646765474118,1.1343499,2578.7,2578.6,0.41348432]
[1646765474318,1.1343499,2578.7,2578.5,0.00382142]
[1646765474722,0.04155087,2578.8,2578.5,0.41730574]
[1646765475127,0.04155087,2578.8,2578.5,0.42112716]
[1646765475319,0.04155087,2578.8,2578.6,0.41348432]
[1646765475578,0.04178848,2578.8,2578.5,0.00382142]
[1646765475769,0.04178848,2578.8,2578.5,0.41726872]
[1646765476070,1.13421245,2578.7,2578.6,0.41352134]
[1646765476269,1.13421245,2578.7,2578.5,0.00764337]
[1646765476470,1.13421245,2578.7,2578.6,0.41351523]
[1646765476670,1.13421245,2578.7,2578.5,0.00382195]
[1646765476870,0.00182516,2578.4,2578.2,0.41351802]
[1646765477070,0.00182516,2578.4,2578.3,0.41351802]
[1646765477271,0.00182516,2578.4,2578.0,1.68362802]
[1646765477470,0.00182516,2578.4,2578.1,0.41351802]
[1646765477872,0.00182516,2578.4,2577.9,0.71415381]
[1646765477873,0.00182516,2578.4,2578.2,0.41351802]
[1646765478073,1.13603761,2578.4,2578.3,0.41351802]
[1646765478271,0.00182516,2578.4,2578.3,0.41351802]
[1646765478472,0.00182516,2578.4,2578.0,0.41351802]
[1646765478671,0.00182516,2578.4,2578.1,0.41351802]
[1646765478870,0.00182516,2578.4,2578.2,0.41351802]
[1646765479073,0.00182516,2578.4,2578.3,0.41351802]
[1646765479718,0.00182516,2578.4,2577.9,0.41351802]
[1646765479918,0.00182516,2578.4,2578.2,0.00256341]
[1646765480919,0.08505677,2578.4,2578.2,0.00256341]
[1646765481120,0.08505677,2578.4,2578.2,0.00409328]
[1646765481319,0.08505677,2578.4,2578.2,0.4176113]
[1646765481520,0.08505677,2578.4,2578.3,0.41351802]
[1646765482330,0.08505677,2578.4,2578.3,0.71351802]
[1646765482922,0.08505677,2578.4,2578.3,1.18151802]
[1646765483571,0.08505677,2578.4,2578.3,1.8803782]
[1646765483572,5.677e-05,2578.4,2578.3,1.8803782]
[1646765484373,5.677e-05,2578.4,2578.3,1.18151802]
[1646765484776,5.677e-05,2578.4,2578.3,0.88151802]
[1646765485877,0.04149561,2578.4,2578.3,0.88151802]
[1646765486077,0.04149561,2578.4,2578.3,1.18151802]
[1646765487118,0.04149561,2578.4,2578.3,1.8803782]
[1646765488122,0.04423436,2578.8,2578.4,0.85607128]
[1646765488321,0.04298518,2578.8,2578.5,0.41351802]
[1646765488522,0.04298518,2578.8,2578.5,0.71351802]
[1646765488725,0.04298518,2578.8,2578.6,0.41351802]
[1646765489123,0.004177,2579.6,2578.7,6.0]
[1646765489321,0.004177,2579.6,2578.8,0.41351802]
[1646765489520,0.004177,2579.6,2578.9,0.468]
[1646765489720,1.13243838,2579.6,2579.0,0.41351802]
[1646765489923,1.13243838,2579.6,2579.1,0.468]
[1646765490123,1.13243838,2579.6,2579.2,0.41351802]
[1646765490324,0.004177,2579.6,2579.3,0.74071967]
[1646765490567,0.004177,2579.6,2579.4,0.41351802]
[1646765490775,0.004177,2579.6,2579.5,0.468]
[1646765490971,0.004177,2579.6,2579.5,0.88151802]
[1646765491169,0.004177,2579.6,2579.5,1.18151802]
[1646765491570,0.004177,2579.6,2579.5,0.768]
[1646765492372,4.19561157,2580.0,2578.9,0.468]
[1646765492572,1.12381221,2579.9,2579.0,0.42381815]
[1646765493175,0.00153254,2579.7,2579.0,0.42381815]
[1646765493377,0.00153254,2579.7,2579.5,0.73192601]
[1646765493778,0.00153254,2579.7,2579.5,1.03192601]
[1646765494419,0.00594094,2579.7,2579.5,1.03192601]
[1646765494621,0.0044084,2579.7,2579.5,1.03192601]
[1646765495420,0.004177,2579.6,2579.5,1.03192601]
[1646765495620,0.004177,2579.6,2579.5,1.46418754]
[1646765495823,0.004177,2579.6,2579.1,2.43754]
[1646765496028,1.11808885,2579.6,2579.2,0.4322113]
[1646765496224,1.18424776,2579.6,2579.2,0.4322113]
[1646765496422,1.18424776,2579.6,2579.3,0.43224043]
[1646765496423,1.11391185,2579.5,2579.3,0.43224043]
[1646765496622,1.11391185,2579.5,2578.8,0.768]
[1646765496824,1.11391185,2579.5,2578.9,0.43621381]
[1646765496825,3.8816,2579.4,2578.9,0.43621381]
[1646765497022,1.11391185,2579.3,2579.0,0.43621381]
[1646765497222,0.63144328,2578.9,2578.7,2.86520072]
[1646765497424,0.63144328,2578.9,2578.8,0.43627066]
[1646765498272,0.63144328,2578.9,2578.8,0.73627066]
[1646765499277,0.63144328,2578.9,2578.8,0.43627066]
[1646765499676,0.63144328,2578.9,2578.5,0.00375989]
[1646765500277,0.63144328,2578.9,2578.5,0.00751978]
[1646765500476,0.63144328,2578.9,2578.6,0.43638276]
[1646765500676,0.63144328,2578.9,2578.7,0.43638276]
[1646765500876,0.3816,2578.7,2578.5,0.00375989]
[1646765501079,0.63144328,2578.9,2578.5,0.00375989]
[1646765501080,15.5116,2578.6,2578.5,0.00375989]
[1646765501280,0.3816,2578.6,2578.5,0.00375989]
[1646765501479,0.3816,2578.6,2578.5,0.00164989]
[1646765501676,0.3816,2578.6,2578.5,0.00544803]
[1646765501677,1.491293,2578.6,2578.5,0.00544803]
[1646765501917,1.491293,2578.6,2578.5,0.00379814]
[1646765502818,1.491293,2578.6,2577.9,0.43838228]
[1646765503026,0.3816,2578.4,2578.0,0.43838228]
[1646765503319,0.3816,2578.4,2578.1,0.43838228]
[1646765503519,0.3816,2578.4,2578.2,0.43838228]
[1646765503719,0.3816,2578.4,2578.3,0.43838228]
[1646765503922,0.44757153,2578.8,2578.3,0.43838228]
[1646765504221,0.06597153,2578.8,2578.4,0.43822344]
[1646765504420,0.06597153,2578.8,2577.8,0.90851937]
[1646765504621,0.06597153,2578.8,2577.8,1.20622344]
[1646765504921,0.06597153,2578.8,2577.9,0.43822344]
[1646765505122,1.10634021,2578.7,2578.6,0.65883612]
[1646765505423,0.06597153,2578.8,2578.6,1.09705956]
[1646765505669,0.06597153,2578.8,2578.7,0.43817468]
[1646765506072,0.06597153,2578.8,2578.2,0.00229593]
[1646765506270,0.06597153,2578.8,2578.4,0.00441019]
[1646765506473,0.06597153,2578.8,2578.5,0.43821129]
[1646765506870,0.03306973,2578.6,2578.5,0.73821129]
[1646765509417,0.03306973,2578.6,2578.5,1.20621129]
[1646765511526,0.03286223,2578.7,2578.5,1.20621129]
[1646765511724,0.03286223,2578.7,2578.6,0.43821129]
[1646765512325,0.03286223,2578.7,2578.6,0.90621129]
[1646765513575,0.03286223,2578.7,2578.6,3.90621129]
[1646765513773,0.03286223,2578.7,2578.6,4.90621129]
[1646765514178,0.004177,2579.6,2578.7,17.63]
[1646765514374,0.004177,2579.6,2579.2,0.96937]
[1646765514575,0.004177,2579.6,2579.3,2.73903112]
[1646765514777,0.004177,2579.6,2579.4,1.20621129]
[1646765514978,0.004177,2579.6,2579.5,0.43821129]
[1646765515778,0.004177,2579.6,2579.5,0.90621129]
[1646765516478,1.09524718,2580.1,2579.5,0.90621129]
[1646765516681,1.09524718,2580.1,2579.9,0.78511667]
[1646765516682,1.09107018,2580.0,2579.9,0.78511667]
[1646765516922,0.004177,2580.1,2579.6,0.3]
[1646765517122,0.00126726,2579.7,2579.5,0.468]
[1646765517822,0.00126726,2579.7,2579.0,1.93891]
[1646765517823,0.19805704,2579.4,2579.2,0.468]
[1646765518021,0.19805704,2579.4,2579.3,0.4634808]
[1646765518520,0.19805704,2579.4,2579.3,1.327376]
[1646765518723,0.19805704,2579.4,2579.3,1.627376]
[1646765518925,0.19805704,2579.4,2579.0,2.93891]
[1646765519123,0.19805704,2579.4,2579.1,0.46352422]
[1646765519328,0.19805704,2579.4,2578.6,0.4744403]
[1646765519522,0.14805704,2579.4,2578.8,0.3]
[1646765519723,0.14805704,2579.4,2578.9,0.76354858]
[1646765519924,0.14805704,2579.4,2579.3,0.72742926]
[1646765520128,0.14805704,2579.4,2578.6,0.47444018]
[1646765520328,0.14805704,2579.4,2578.7,0.46445656]
[1646765521171,0.14805704,2579.4,2578.7,1.27037725]
[1646765521371,0.14805704,2579.4,2578.8,0.46445656]
[1646765521571,0.14805704,2579.4,2578.8,0.76445656]
[1646765521774,0.14805704,2579.4,2578.9,0.46445656]
[1646765521979,0.00413037,2579.2,2578.9,1.43410656]
[1646765522177,0.00413037,2579.2,2579.0,0.93245656]
[1646765522376,0.00413037,2579.2,2579.1,1.19354573]
[1646765522574,0.00413037,2579.2,2579.1,1.96154573]
[1646765522975,0.00413037,2579.2,2579.1,3.93092573]
[1646765523174,0.00379075,2579.3,2579.2,6.96938]
[1646765523375,7.338,2580.8,2579.3,6.3816]
[1646765523576,7.86,2580.9,2580.4,0.83206984]
[1646765523774,7.86,2580.9,2579.4,12.098]
[1646765523775,7.86,2580.9,2580.2,0.468]
[1646765523974,7.86,2580.9,2580.1,0.468]
[1646765524175,1.07856144,2580.8,2580.1,0.468]
[1646765524424,0.3816,2580.6,2579.7,0.768]
[1646765524627,1.46016144,2580.5,2579.8,0.46679454]
[1646765524824,1.46016144,2580.4,2579.7,0.468]
[1646765525023,1.07856144,2580.3,2579.7,0.468]
[1646765525225,0.3816,2580.6,2579.7,0.468]
[1646765525426,1.07829006,2580.5,2579.7,0.468]
[1646765525928,7.81887457,2580.9,2579.8,0.46686748]
[1646765525929,10.34943457,2580.9,2579.8,0.46686748]
[1646765526130,6.158,2580.9,2580.4,0.75689004]
[1646765526329,0.3,2581.0,2579.9,0.468]
[1646765526529,1.07303457,2581.1,2579.9,0.468]
[1646765526530,0.69143457,2581.1,2579.9,0.468]
[1646765527131,0.96931,2581.1,2579.9,0.468]
[1646765527729,0.96931,2581.1,2580.4,1.19274147]
[1646765527929,0.0044159,2580.6,2580.4,1.19274147]
[1646765529169,0.0088318,2580.6,2580.4,1.19274147]
[1646765529369,0.0044159,2580.6,2580.4,1.19274147]
[1646765529774,0.0044159,2580.6,2579.6,4.6725]
[1646765530071,0.0044159,2580.6,2579.7,0.468]
[1646765530473,0.0088318,2580.6,2579.7,0.468]
[1646765530674,0.0044159,2580.6,2579.7,0.468]
[1646765530877,0.0044159,2580.6,2579.7,1.3237371]
[1646765531281,0.0044159,2580.6,2579.7,1.6237371]
[1646765531677,0.00405881,2580.3,2579.7,1.6237371]
[1646765532820,0.00375137,2580.1,2579.7,1.6237371]
[1646765534020,0.00375147,2580.0,2579.7,1.6237371]
[1646765534620,0.00375147,2580.0,2579.7,0.768]
[1646765534824,0.00375147,2580.0,2579.7,0.3]
[1646765535024,0.00375147,2580.0,2579.3,2.9316]
[1646765535220,0.00375147,2580.0,2579.0,6.2626]
[1646765535419,0.00379846,2580.0,2579.0,0.468]
[1646765535974,0.00379846,2580.0,2579.1,0.64925583]
[1646765536373,0.00384604,2579.6,2579.1,0.64925583]
[1646765536575,0.00384604,2579.6,2579.1,0.94925583]
[1646765537676,3.5,2580.1,2579.1,0.94925583]
[1646765537677,0.00384619,2579.5,2579.1,0.94925583]
[1646765537876,0.0015077,2579.5,2579.1,0.94925583]
[1646765538274,0.0015077,2579.5,2579.1,0.3]
[1646765538475,0.0015077,2579.5,2578.8,3.95974728]
[1646765538675,0.0015077,2579.5,2578.9,0.3]
[1646765538875,0.0015077,2579.5,2578.8,3.95974728]
[1646765538876,0.3816,2579.8,2578.8,4.2559]
[1646765539077,0.3816,2579.8,2578.8,2.9559]
[1646765539323,0.3816,2579.8,2579.1,0.88467379]
[1646765539521,11.63,2580.0,2579.1,0.88467379]
[1646765539522,0.3816,2579.9,2579.1,0.88467379]
[1646765540023,0.0012573,2579.6,2579.1,0.88467379]
[1646765540226,0.0012573,2579.6,2579.1,1.18467379]
[1646765540422,0.0012573,2579.6,2579.2,0.468]
[1646765540625,0.02893698,2579.5,2579.2,0.468]
[1646765541026,0.02893698,2579.5,2579.3,0.19556751]
[1646765541228,0.02893698,2579.5,2579.4,0.468]
[1646765541628,0.02893698,2579.5,2579.4,0.768]
[1646765545871,0.02893698,2579.5,2579.4,1.24805523]
[1646765546472,0.02893698,2579.5,2579.4,0.48005523]
[1646765546672,0.02893698,2579.5,2579.0,0.418]
[1646765546923,0.02893698,2579.5,2579.1,0.4801868]
[1646765547222,0.02893698,2579.5,2579.1,0.7801868]
[1646765547422,0.02893698,2579.5,2579.2,1.16415683]
[1646765547622,0.02893698,2579.5,2579.3,0.4801868]
[1646765551074,0.02893698,2579.5,2579.4,0.4801868]
[1646765551273,0.02893698,2579.5,2579.1,0.4801868]
[1646765551875,0.02893698,2579.5,2579.2,0.67598745]
[1646765552075,0.02893698,2579.5,2579.0,1.3]
[1646765552076,0.02893698,2579.5,2579.3,0.4801868]
[1646765552275,0.02893698,2579.5,2579.4,0.4801868]
[1646765552674,0.02893698,2579.5,2579.2,0.4801868]
[1646765552876,0.02893698,2579.5,2579.4,0.3]
[1646765553077,0.02893698,2579.5,2579.4,0.7801868]
[1646765553279,0.02893698,2579.5,2579.4,2.07563075]
[1646765554176,0.02893698,2579.5,2579.4,3.07563075]
[1646765554620,0.02893698,2579.5,2579.4,2.07563075]
[1646765554821,0.02893698,2579.5,2579.4,3.07563075]
[1646765555022,0.02893698,2579.5,2579.4,2.07563075]
[1646765555222,0.02893698,2579.5,2579.4,1.4801868]
[1646765555421,0.02893698,2579.5,2579.4,0.4801868]
[1646765555828,0.02893698,2579.5,2579.1,1.19049582]
[1646765556024,0.02893698,2579.5,2579.4,0.4801868]
[1646765556225,0.02893698,2579.5,2579.2,0.4801868]
[1646765556423,0.02893698,2579.5,2579.3,0.4801868]
[1646765556624,0.02893698,2579.5,2579.3,0.3]
[1646765556824,0.02893698,2579.5,2579.4,0.4801868]
[1646765557827,0.010899,2579.5,2579.4,0.4801868]
[1646765558872,0.010899,2579.5,2579.4,1.65849582]
[1646765559672,0.010899,2579.5,2579.4,0.9481868]
[1646765559874,0.010899,2579.5,2579.4,1.9481868]
[1646765560176,0.010899,2579.5,2579.4,2.65964768]
[1646765560572,0.010899,2579.5,2579.4,3.65964768]
[1646765560982,0.02888151,2579.5,2579.4,3.65964768]
[1646765561926,0.02888151,2579.5,2579.4,2.9481868]
[1646765562124,0.02888151,2579.5,2579.4,2.65958667]
[1646765562324,0.02888151,2579.5,2579.4,1.9481868]
[1646765562526,0.02888151,2579.5,2579.4,0.9481868]
[1646765565128,0.02888151,2579.5,2579.4,0.4801868]
[1646765565571,0.02888151,2579.5,2579.3,0.4801868]
[1646765566376,0.02888151,2579.5,2579.3,0.7801868]
[1646765566578,0.02888151,2579.5,2579.4,0.4801868]
[1646765568377,0.02888151,2579.5,2579.4,1.19158667]
[1646765568579,0.02888151,2579.5,2579.4,2.65958667]
[1646765568779,0.02888151,2579.5,2579.4,3.65958667]
[1646765569328,0.03256427,2579.6,2579.5,6.90452181]
[1646765569329,0.00383343,2579.6,2579.5,6.90452181]
[1646765569526,0.00383343,2579.6,2579.5,8.15270861]
[1646765569728,0.00383343,2579.6,2579.5,9.15270861]
[1646765570328,0.0038334,2579.7,2579.5,9.15270861]
[1646765570526,0.0038334,2579.7,2579.6,1.1920868]
[1646765570730,0.0038334,2579.7,2579.6,1.6600868]
[1646765571335,0.0038334,2579.7,2579.6,0.9481868]
[1646765571542,0.0038333,2579.8,2579.6,0.9481868]
[1646765571731,0.0038333,2579.8,2579.7,0.7801868]
[1646765571931,0.0038333,2579.8,2579.7,1.2481868]
[1646765572734,0.00383319,2579.9,2579.7,1.2481868]
[1646765572935,0.00383319,2579.9,2579.8,0.4801868]
[1646765573180,0.00383319,2579.9,2579.8,0.7801868]
[1646765573983,0.00383309,2580.0,2579.8,0.7801868]
[1646765574179,0.00383309,2580.0,2579.9,0.4801868]
[1646765575082,0.00383299,2580.1,2579.9,1.15056261]
[1646765575284,0.00383299,2580.1,2580.0,0.4801868]
[1646765575684,0.00383299,2580.1,2580.0,0.3]
[1646765575885,1.04823637,2580.6,2580.0,0.7801868]
[1646765575886,1.03428078,2580.6,2580.0,0.7801868]
[1646765576086,1.03428078,2580.6,2579.6,0.4843759]
[1646765576286,0.00383288,2580.2,2580.0,0.66817523]
[1646765576686,0.00383288,2580.2,2580.0,0.96817523]
[1646765576923,0.00383288,2580.2,2580.0,0.3]
[1646765577122,0.00383288,2580.2,2579.6,0.4843759]
[1646765577524,1.03428078,2580.6,2579.6,0.7843759]
[1646765577924,1.03428078,2580.6,2579.7,0.65182413]
[1646765578929,3.5,2580.5,2579.6,0.7843759]
[1646765579130,4.85117,2580.5,2579.6,0.3163759]
[1646765579327,4.85117,2580.5,2579.6,0.0163759]
[1646765579727,0.00441632,2580.2,2579.6,0.0163759]
[1646765580972,0.00883255,2580.2,2579.6,0.0163759]
[1646765581174,0.02995367,2580.1,2579.6,0.0163759]
[1646765582675,0.00598334,2579.5,2579.1,1.01631805]
[1646765582876,0.00598334,2579.5,2579.1,0.30441805]
[1646765583274,0.00598334,2579.5,2579.1,0.00441805]
[1646765584719,0.00598334,2579.5,2579.1,0.00377576]
[1646765585020,0.00598334,2579.5,2579.1,0.71567576]
[1646765585220,0.00598334,2579.5,2579.1,1.01567576]
[1646765585421,0.00598334,2579.5,2579.1,0.30377576]
[1646765585825,0.00598334,2579.5,2579.2,0.89020025]
[1646765586225,0.00598334,2579.5,2579.2,1.19020025]
[1646765586625,0.00598334,2579.5,2579.3,0.468]
[1646765586831,0.00598334,2579.5,2579.4,0.7119]
[1646765587025,0.00598334,2579.5,2579.4,1.1799]
[1646765587226,0.00598334,2579.5,2579.4,1.4799]
[1646765587427,0.00598334,2579.5,2579.4,3.87412438]
[1646765587629,0.00598334,2579.5,2579.4,2.93281751]
[1646765587828,0.00598334,2579.5,2579.4,3.93281751]
[1646765588084,0.00598334,2579.5,2579.4,3.91273569]
[1646765588274,0.00598334,2579.5,2579.4,2.768]
[1646765588674,0.00598334,2579.5,2579.4,1.768]
[1646765590782,0.00598334,2579.5,2579.4,2.47983648]
[1646765590980,0.03465863,2579.5,2579.4,2.47983648]
[1646765592322,0.03465863,2579.5,2579.3,0.71183648]
[1646765592520,0.03465863,2579.5,2579.2,0.71183648]
[1646765592720,0.03465863,2579.5,2579.1,0.71607215]
[1646765593121,0.03465863,2579.5,2579.1,0.72006691]
[1646765593322,0.03465863,2579.5,2579.1,0.71583124]
[1646765593521,0.03465863,2579.5,2579.1,1.01583124]
[1646765593923,0.03465863,2579.5,2579.2,0.71183648]
[1646765595590,0.03465863,2579.5,2579.1,1.01573676]
[1646765595977,0.03465863,2579.5,2579.2,0.51226189]
[1646765596378,0.03465863,2579.5,2579.2,1.22409837]
[1646765596980,0.03465863,2579.5,2579.3,0.51226189]
[1646765597183,0.41625863,2579.5,2579.1,0.00390025]
[1646765597580,1.35141,2580.1,2579.1,0.51616214]
[1646765597786,0.70979557,2581.4,2580.0,3.0]
[1646765598086,0.68890676,2581.4,2580.3,0.01232485]
[1646765598280,1.03534958,2581.3,2581.1,3.0]
[1646765598483,1.03534958,2581.4,2581.2,0.468]
[1646765598680,0.13819997,2581.7,2581.1,0.01280732]
[1646765598681,1.8293393,2581.3,2581.1,0.01280732]
[1646765598882,1.8293393,2581.3,2580.8,1.0]
[1646765598883,0.98093385,2581.2,2580.8,1.0]
[1646765599081,11.63,2581.1,2580.8,1.0]
[1646765599323,0.98093385,2581.0,2580.8,1.0]
[1646765599523,10.40076259,2581.1,2580.8,1.0]
[1646765599835,1.37781352,2581.8,2580.8,1.0]
[1646765599836,0.68804427,2582.1,2581.0,3.39414667]
[1646765600029,0.68804427,2582.5,2582.1,0.3816]
[1646765600228,9.6576951,2583.7,2582.0,3.01250254]
[1646765600229,0.91739235,2583.1,2582.4,3.3816]
[1646765600432,1.83540017,2583.6,2583.0,3.0]
[1646765600433,0.91739235,2583.4,2583.0,3.0]
[1646765600629,1.37655012,2583.6,2583.0,3.0]
[1646765600630,1.37655012,2583.7,2583.3,3.0]
[1646765600830,0.5,2583.8,2583.7,2.82364182]
[1646765601030,0.5,2583.8,2583.7,3.29164182]
[1646765601232,0.5,2583.8,2583.7,7.59164182]
[1646765601429,2.37655012,2584.6,2583.8,6.0]
[1646765601632,1.0,2584.6,2584.2,3.0]
[1646765601832,0.04149492,2584.5,2584.2,3.20296]
[1646765602032,0.04149492,2584.5,2584.4,3.0]
[1646765602230,3.21195029,2585.5,2584.4,3.0]
[1646765602231,1.37655012,2585.5,2584.4,4.468]
[1646765602434,1.37655012,2585.6,2584.4,4.768]
[1646765602632,0.04547388,2585.2,2584.4,4.768]
[1646765602835,0.00153204,2584.5,2584.4,1.768]
[1646765603083,0.00153204,2584.5,2584.3,1.0]
[1646765603280,0.42462696,2584.5,2584.3,1.0]
[1646765603479,0.04092649,2584.4,2584.3,1.0]
[1646765603880,0.04092649,2584.4,2584.3,0.468]
[1646765604079,0.00153204,2584.5,2584.4,6.0]
[1646765604279,0.00153204,2584.5,2584.4,6.468]
[1646765604488,0.00153204,2584.5,2584.4,7.26753828]
[1646765604679,0.00153204,2584.5,2584.4,8.26753828]
[1646765604881,0.00612724,2584.9,2584.5,6.0]
[1646765605085,5.75487012,2586.2,2584.6,0.468]
[1646765605086,0.00612724,2585.0,2584.6,0.468]
[1646765605281,0.00612724,2585.0,2584.8,3.0]
[1646765605482,0.00612724,2585.0,2584.9,0.468]
[1646765605684,0.00612724,2585.0,2584.9,0.11562785]
[1646765605883,0.00612724,2585.0,2584.8,1.3]
[1646765606184,0.00612724,2585.0,2584.8,0.3]
[1646765606383,12.0116,2585.3,2584.8,0.3]
[1646765607019,0.6816,2585.4,2584.8,0.3]
[1646765607222,0.3816,2585.4,2584.8,0.3]
[1646765607624,0.00141348,2585.2,2584.8,0.3]
[1646765608021,0.38301348,2585.2,2584.8,0.3]
[1646765608623,12.01301348,2585.2,2584.5,0.468]
[1646765608825,1.16380993,2585.4,2584.4,0.01587543]
[1646765608826,12.0116,2585.0,2584.4,0.01587543]
[1646765609024,12.0116,2584.8,2584.4,0.01587543]
[1646765609525,12.0116,2584.8,2584.4,3.01587543]
[1646765609724,0.00141348,2585.1,2584.6,0.79195816]
[1646765610025,0.00437693,2584.7,2584.6,0.79195816]
[1646765610226,0.00437693,2584.7,2584.6,3.79195816]
[1646765610431,0.00437693,2584.7,2584.6,4.25995816]
[1646765610680,0.00437693,2584.7,2584.6,5.25995816]
[1646765611081,0.01750508,2585.1,2584.9,0.01586685]
[1646765611282,0.01709919,2585.2,2585.0,3.468]
[1646765611481,0.01709919,2585.2,2585.1,3.0]
[1646765611680,0.01709919,2585.2,2585.1,3.468]
[1646765611879,0.01709919,2585.2,2585.1,0.468]
[1646765612082,0.01709919,2585.2,2584.9,4.95041685]
[1646765612083,0.02347629,2585.3,2584.9,3.01586685]
[1646765612279,0.02347629,2585.3,2585.0,0.3]
[1646765613880,0.02347629,2585.3,2584.9,1.01586685]
[1646765614084,0.02347629,2585.3,2584.9,0.01586685]
[1646765614931,0.66997853,2585.1,2584.9,0.01586685]
[1646765615933,0.67446013,2585.1,2584.9,0.01586685]
[1646765616337,3.5,2585.0,2584.9,0.01586685]
[1646765616533,0.67446013,2585.1,2584.0,3.6780019]
[1646765616734,0.67446013,2585.1,2584.0,1.0]
[1646765616735,3.5,2585.0,2584.0,1.0]
[1646765617135,3.5,2585.0,2583.9,0.96797]
[1646765617735,0.68959952,2584.6,2583.9,0.96797]
[1646765617937,0.96806,2584.8,2583.7,2.66981651]
[1646765618376,0.9725418,2584.8,2583.7,2.66981651]
[1646765618576,3.5,2584.7,2583.7,1.9357]
[1646765618777,15.13,2584.7,2583.5,4.34918476]
[1646765618978,15.13,2584.7,2583.4,2.53570088]
[1646765618979,12.59818,2584.5,2583.4,2.53570088]
[1646765619178,0.96826,2584.6,2583.4,2.53570088]
[1646765619179,15.13,2584.4,2583.4,2.53570088]
[1646765619376,13.56676,2584.2,2583.4,2.53570088]
[1646765619576,0.68490287,2583.7,2583.4,2.53570088]
[1646765620174,3.5,2584.1,2583.4,2.53570088]
[1646765620175,0.96836,2584.0,2583.4,2.53570088]
[1646765620378,0.96836,2584.0,2583.2,3.0]
[1646765620576,1.3,2584.1,2583.2,3.0]
[1646765620783,0.31193462,2584.1,2583.2,3.0]
[1646765620980,0.01193462,2584.1,2583.2,3.0]
[1646765621181,0.81333754,2583.8,2583.2,3.0]
[1646765621381,0.81333754,2583.8,2583.0,1.93635]
[1646765621583,12.44333754,2583.8,2582.8,3.53570088]
[1646765621835,12.44333754,2583.8,2582.8,2.53570088]
[1646765622024,12.44333754,2583.8,2582.8,5.53570088]
[1646765622223,11.63,2583.6,2582.8,2.53570088]
[1646765622422,12.0116,2583.6,2582.8,2.53570088]
[1646765622624,0.78655419,2583.0,2582.8,2.53570088]
[1646765622826,1.09122159,2582.7,2582.4,1.93667]
[1646765623024,1.09122159,2582.7,2582.3,2.53570088]
[1646765624028,1.09122159,2582.7,2582.2,3.0]
[1646765624225,1.09122159,2582.7,2582.2,4.0]
[1646765624427,1.09122159,2582.7,2582.0,3.0]
[1646765624428,15.13,2582.6,2582.0,3.0]
[1646765624627,11.63,2582.4,2582.0,3.0]
[1646765625228,13.0116,2582.4,2581.2,2.40573]
[1646765625426,13.0116,2582.4,2581.1,3.0]
[1646765625427,12.47494602,2582.1,2581.1,3.0]